{"text_format":"1","workbook":"xlsx","n_sheets":5,"sheets":["Country Stats","WC Dashboard","Player Stats","World Cup History","World Cup Stats"],"not_rendered":{"charts":2,"images":2,"macros":1,"external_links":0,"defined_names":3,"comments":0,"pivot_tables":0},"unopened":[],"bounds":{"document_bytes":16777216,"sheet_cells":100000,"rows_first":2000,"rows_last":500,"rows_between":2000,"halvings":0,"cell_chars":16384,"cell_head_chars":4096},"cells_cut":0,"cells_raw":0,"read":"whole","date_system":"1900"}

{"sheet":"Country Stats","index":0,"n_rows":19,"n_cols":23,"rows_kept":19,"cut":false,"hidden":true,"merged":[]}
["Country",{"$f":"CHOOSE($B$13,K1,N1,Q1,T1,W1,E1,H1)","v":"Appearances"},null,"Country","Wins",null,"Country","Goals Scored",null,"Country","Appearances",null,"Country","Games Played",null,"Country","WC Champions",null,"Country","Finals Played",null,"Country","Top 4 Finishes"]
[{"$f":"CHOOSE($B$13,J2,M2,P2,S3,V2,D2,G2)","v":"Brazil"},{"$f":"CHOOSE($B$13,K2,N2,Q2,T2,W2,E2,H2)","v":21},null,"Brazil",70,null,"Brazil",221,null,"Brazil",21,null,"Germany",106,null,"Brazil",5,null,"Germany",8,null,"Germany",13]
[{"$f":"CHOOSE($B$13,J3,M3,P3,S2,V3,D3,G3)","v":"Germany"},{"$f":"CHOOSE($B$13,K3,N3,Q3,T3,W3,E3,H3)","v":19},null,"Germany",66,null,"Germany",224,null,"Germany",19,null,"Brazil",104,null,"Italy",4,null,"Brazil",7,null,"Brazil",11]
[{"$f":"CHOOSE($B$13,J4,M4,P4,S4,V4,D4,G5)","v":"Italy"},19,null,"Italy",45,null,"Argentina",131,null,"Italy",19,null,"Italy",83,null,"Germany",4,null,"Italy",6,null,"Italy",8]
[{"$f":"CHOOSE($B$13,J5,M5,P5,S5,V5,D5,G4)","v":"Argentina"},17,null,"Argentina",42,null,"Italy",128,null,"Argentina",17,null,"Argentina",77,null,"Argentina",2,null,"Argentina",5,null,"France",5]
[{"$f":"CHOOSE($B$13,J6,M6,P6,S6,V6,D6,G6)","v":"Mexico"},16,null,"Spain",29,null,"France",106,null,"Mexico",16,null,"England",62,null,"Uruguay",2,null,"Netherlands",3,null,"Uruguay",5]
["England",15,null,"France",28,null,"Spain",92,null,"England",15,null,"Spain",59,null,"England",1,null,"Uruguay",2,null,"Argentina",5]
[{"$f":"CHOOSE($B$13,J8,M8,P8,S8,V8,D9,G8)","v":"France"},15,null,"Netherlands",27,null,"Hungary",87,null,"France",15,null,"France",59,null,"France",1,null,"Hungary",2,null,"Netherlands",5]
[{"$f":"CHOOSE($B$13,J9,M9,P9,S9,V9,D8,G10)","v":"Spain"},15,null,"England",26,null,"Uruguay",80,null,"Spain",15,null,"Mexico",53,null,"Spain",1,null,"Czechoslovakia",2,null,"Sweden",4]
[{"$f":"CHOOSE($B$13,J10,M10,P10,S10,V10,D10,G9)","v":"Belgium"},13,null,"Uruguay",20,null,"England",79,null,"Belgium",13,null,"Uruguay",51,null,null,null,null,"France",2,null,"Austria",2]
["Uruguay",15,null,"Sweden",16,null,"Sweden",74,null,"Uruguay",15,null,"Sweden",46,null,null,null,null,"Sweden",1,null,"England",2]
[]
["WC Appearances",1,null,null,null,null,null,null,null,null,null,null,null,null,null,null,null,null,"England and Spain have also contested in 1 final2",null,null,"Hungary, Poland, Portugal, Spain, Czechoslovakia and Yugoslavia also with 2 top 4 finishes"]
["Games Played"]
["WC Champions"]
["Reached Final"]
["Top 4 Finishes"]
["Wins"]
["Goals Scored"]

{"sheet":"WC Dashboard","index":1,"n_rows":22,"n_cols":14,"rows_kept":22,"cut":false,"hidden":false,"merged":[[7,6,7,7],[7,8,7,9],[7,12,7,13],[7,10,10,11]]}
[]
[]
[]
[]
[]
[]
[null,"Year","Host","Winners","Runners Up",null,"Total Goals Scored",null,"Av Goals Per Match",null,"Top Scorers",null,"Av Attendance"]
[null,{"$f":"OFFSET('World Cup History'!A1,'World Cup History'!$G$1,0,1,1)","v":2014},{"$f":"OFFSET('World Cup History'!B1,'World Cup History'!$G$1,0,1,1)","v":"Brazil"},{"$f":"OFFSET('World Cup History'!C1,'World Cup History'!$G$1,0,1,1)","v":"Germany"},{"$f":"OFFSET('World Cup History'!D1,'World Cup History'!$G$1,0,1,1)","v":"Argentina"},null,161,null,2.52,null,"Ronaldo, Brazil (8 goals)",null,42268]
[null,{"$f":"OFFSET('World Cup History'!A3,'World Cup History'!$G$1,0,1,1)","v":2006},{"$f":"OFFSET('World Cup History'!B3,'World Cup History'!$G$1,0,1,1)","v":"Germany"},{"$f":"OFFSET('World Cup History'!C3,'World Cup History'!$G$1,0,1,1)","v":"Italy"},{"$f":"OFFSET('World Cup History'!D3,'World Cup History'!$G$1,0,1,1)","v":"France"}]
[null,{"$f":"OFFSET('World Cup History'!A4,'World Cup History'!$G$1,0,1,1)","v":2002},{"$f":"OFFSET('World Cup History'!B4,'World Cup History'!$G$1,0,1,1)","v":"South Korea & Japan"},{"$f":"OFFSET('World Cup History'!C4,'World Cup History'!$G$1,0,1,1)","v":"Brazil"},{"$f":"OFFSET('World Cup History'!D4,'World Cup History'!$G$1,0,1,1)","v":"Germany"}]
[null,{"$f":"OFFSET('World Cup History'!A5,'World Cup History'!$G$1,0,1,1)","v":1998},{"$f":"OFFSET('World Cup History'!B5,'World Cup History'!$G$1,0,1,1)","v":"France"},{"$f":"OFFSET('World Cup History'!C5,'World Cup History'!$G$1,0,1,1)","v":"France"},{"$f":"OFFSET('World Cup History'!D5,'World Cup History'!$G$1,0,1,1)","v":"Brazil"}]
[null,{"$f":"OFFSET('World Cup History'!A6,'World Cup History'!$G$1,0,1,1)","v":1994},{"$f":"OFFSET('World Cup History'!B6,'World Cup History'!$G$1,0,1,1)","v":"USA"},{"$f":"OFFSET('World Cup History'!C6,'World Cup History'!$G$1,0,1,1)","v":"Brazil"},{"$f":"OFFSET('World Cup History'!D6,'World Cup History'!$G$1,0,1,1)","v":"Italy"},null,"WC","Goals Scored",null,"WC","Av Goals Per Match",null,"WC","Av Attendance"]
[null,{"$f":"OFFSET('World Cup History'!A7,'World Cup History'!$G$1,0,1,1)","v":1990},{"$f":"OFFSET('World Cup History'!B7,'World Cup History'!$G$1,0,1,1)","v":"Italy"},{"$f":"OFFSET('World Cup History'!C7,'World Cup History'!$G$1,0,1,1)","v":"West Germany"},{"$f":"OFFSET('World Cup History'!D7,'World Cup History'!$G$1,0,1,1)","v":"Argentina"},null,1998,171,null,1954,5.38,null,1994,68982]
[null,{"$f":"OFFSET('World Cup History'!A8,'World Cup History'!$G$1,0,1,1)","v":1986},{"$f":"OFFSET('World Cup History'!B8,'World Cup History'!$G$1,0,1,1)","v":"Mexico"},{"$f":"OFFSET('World Cup History'!C8,'World Cup History'!$G$1,0,1,1)","v":"Argentina"},{"$f":"OFFSET('World Cup History'!D8,'World Cup History'!$G$1,0,1,1)","v":"West Germany"},null,2002,161,null,1938,4.67,null,2006,52491]
[null,{"$f":"OFFSET('World Cup History'!A9,'World Cup History'!$G$1,0,1,1)","v":1982},{"$f":"OFFSET('World Cup History'!B9,'World Cup History'!$G$1,0,1,1)","v":"Spain"},{"$f":"OFFSET('World Cup History'!C9,'World Cup History'!$G$1,0,1,1)","v":"Italy"},{"$f":"OFFSET('World Cup History'!D9,'World Cup History'!$G$1,0,1,1)","v":"West Germany"},null,2006,147,null,1934,4.12,null,1966,51216]
[null,{"$f":"OFFSET('World Cup History'!A10,'World Cup History'!$G$1,0,1,1)","v":1978},{"$f":"OFFSET('World Cup History'!B10,'World Cup History'!$G$1,0,1,1)","v":"Argentina"},{"$f":"OFFSET('World Cup History'!C10,'World Cup History'!$G$1,0,1,1)","v":"Argentina"},{"$f":"OFFSET('World Cup History'!D10,'World Cup History'!$G$1,0,1,1)","v":"Netherlands"},null,1982,146,null,1950,4,null,1970,50124]
[null,{"$f":"OFFSET('World Cup History'!A11,'World Cup History'!$G$1,0,1,1)","v":1974},{"$f":"OFFSET('World Cup History'!B11,'World Cup History'!$G$1,0,1,1)","v":"Germany"},{"$f":"OFFSET('World Cup History'!C11,'World Cup History'!$G$1,0,1,1)","v":"West Germany"},{"$f":"OFFSET('World Cup History'!D11,'World Cup History'!$G$1,0,1,1)","v":"Netherlands"},null,2010,145,null,1930,3.89,null,2010,49199]
[]
[]
[]
[]
[null,null,null,null,null,null,null,null,{"$f":"'Player Stats'!$A$13","v":"Karl-Heinz Rummenigge and Berti Vogts have also played 19 WC games"}]

{"sheet":"Player Stats","index":2,"n_rows":18,"n_cols":14,"rows_kept":18,"cut":false,"hidden":true,"merged":[]}
["Player",{"$f":"CHOOSE($B$15,E1,H1,N1,K1)","v":"Games Played"},null,"Player","Games Played",null,"Player","Goals Scored",null,"Player","Cautions",null,"Player","Penaties"]
[{"$f":"CHOOSE($B$15,D2,#REF!,M2,J2)","v":"Lothar Matthäus"},{"$f":"CHOOSE($B$15,E2,H2,N2,K2)","v":25},null,"Lothar Matthäus",25,null,"Miroslav Klose",16,null,"Cafu",6,null,"Gabriel Batistuta",4]
[{"$f":"CHOOSE($B$15,D4,G2,M3,J3)","v":"Paolo Maldini"},{"$f":"CHOOSE($B$15,E3,H3,N3,K3)","v":24},null,"Miroslav Klose",24,null,"Ronaldo",15,null,"Lothar Matthäus",5,null,"Eusebio",4]
[{"$f":"CHOOSE($B$15,D5,G4,M4,J4)","v":"Diego Maradona"},23,null,"Paolo Maldini",23,null,"Gerd Müller",14,null,"Michael Ballack",4,null,"Rob Rensenbrink",4]
[{"$f":"CHOOSE($B$15,D6,G5,M5,J5)","v":"Uwe Seeler"},21,null,"Diego Maradona",21,null,"Just Fontaine",13,null,"Zbigniew Boniek",4,null,"Fernando Hierro",3]
[{"$f":"CHOOSE($B$15,D7,G6,M6,J6)","v":"Wladyslaw Zmuda"},21,null,"Uwe Seeler",21,null,"Pelé",12,null,"Riadh Bouazizi",4,null,"Johan Neeskens",3]
[{"$f":"CHOOSE($B$15,D8,G7,M7,J7)","v":"Cafu"},21,null,"Wladyslaw Zmuda",21,null,"Jürgen Klinsmann",11,null,"Andreas Brehme",4,null,"Hristo Stoitchkov",3]
[{"$f":"CHOOSE($B$15,D10,G8,M8,J8)","v":"Grzegorz Lato"},20,null,"Cafu",20,null,"Sándor Kocsis",11,null,"Fabio Cannavaro",4,null,"Sami Al-Jaber",2]
[{"$f":"CHOOSE($B$15,D3,G9,M9,J9)","v":"Miroslav Klose"},20,null,"Philipp Lahm",20,null,"Gabriel Batistuta",10,null,"Jose Chamot",4,null,"Roberto Baggio",2]
[{"$f":"CHOOSE($B$15,D10,G10,M10,J10)","v":"Grzegorz Lato"},20,null,"Grzegorz Lato",20,null,"Teofillo Cubillas",10,null,"Alessandro Costacurta",4,null,"Igor Belanov",2]
[{"$f":"CHOOSE($B$15,D11,G11,M11,J11)","v":"Bastian Schweinsteiger"},20,null,"Bastian Schweinsteiger",20,null,"Grzegorz Lato",10,null,"Dietmar Hamann",4,null,"Michal Bilek",2]
[]
[{"$f":"CHOOSE($B$15,D13,G13,M13,J13)","v":"Karl-Heinz Rummenigge and Berti Vogts have also played 19 WC games"},null,null,"Karl-Heinz Rummenigge and Berti Vogts have also played 19 WC games",null,null,"Gary Lineker, Thomas Müller and Helmut Rahn have also scored 10 WC goals",null,null,"13 more players have 4 cautions",null,null,"16 other players have scored 2 penalties"]
[]
["Games Played",1]
["Goals Scored"]
["Penalties"]
["Cautions"]

{"sheet":"World Cup History","index":3,"n_rows":21,"n_cols":7,"rows_kept":21,"cut":false,"hidden":true,"merged":[]}
["Year","Host","Winners","Runners Up",null,"Start",1]
[2014,"Brazil","Germany","Argentina"]
[2010,"South Africa","Spain","Netherlands"]
[2006,"Germany","Italy","France"]
[2002,"South Korea & Japan","Brazil","Germany"]
[1998,"France","France","Brazil"]
[1994,"USA","Brazil","Italy"]
[1990,"Italy","West Germany","Argentina"]
[1986,"Mexico","Argentina","West Germany"]
[1982,"Spain","Italy","West Germany"]
[1978,"Argentina","Argentina","Netherlands"]
[1974,"Germany","West Germany","Netherlands"]
[1970,"Mexico","Brazil","Italy"]
[1966,"England","England","West Germany"]
[1962,"Chile","Brazil","Czechoslovakia"]
[1958,"Sweden","Brazil","Sweden"]
[1954,"Switzerland","West Germany","Hungary"]
[1950,"Brazil","Uruguay","Brazil"]
[1938,"France","Italy","Hungary"]
[1934,"Italy","Italy","Czechoslovakia"]
[1930,"Uruguay","Uruguay","Argentina"]

{"sheet":"World Cup Stats","index":4,"n_rows":21,"n_cols":14,"rows_kept":21,"cut":false,"hidden":true,"merged":[]}
["Year","Total Goals Scored","Av Goals Per Match","Top Scorers","Av Attendance",null,"WC","Goals Scored",null,"WC","Av Goals Per Match",null,"WC","Av Attendance"]
[2014,171,2.67,"James Rodríguez (6 goals)",52609,null,1998,171,null,1954,5.38,null,1994,68982]
[2010,145,2.27,"Diego Forlan, Uruguay\nThomas Mueller, Germany\nWesley Sneijder, Netherlands\nDavid Villa, Spain (5 goals)",49199,null,2014,171,null,1938,4.67,null,2014,52609]
[2006,147,2.2999999999999998,"Miroslav Klose, Germany (5 goals)",52491,null,2002,161,null,1934,4.12,null,2006,52491]
[2002,161,2.52,"Ronaldo, Brazil (8 goals)",42268,null,2006,147,null,1950,4,null,1966,51216]
[1998,171,2.67,"Davor Suker, Croatia (6 goals)",43357,null,1982,146,null,1930,3.89,null,1970,50124]
[1994,141,2.71,"Oleg Salenko, Russia\nHristo Stoitchkov, Bulgaria (6 goals)",68982]
[1990,115,2.21,"Salvatore Schillaci, Italy (6 goals)",48391]
[1986,132,2.54,"Gary Lineker, England (6 goals)",46025]
[1982,146,2.81,"Paolo Rossi, Italy (6 goals)",40571]
[1978,102,2.68,"Mario Kempes, Argentina (6 goals)",40688]
[1974,97,2.5499999999999998,"Grzegorz Lato, Poland (7 goals)",46530]
[1970,95,2.97,"Gerd Müller, Germany (10 goals)",50124]
[1966,89,2.78,"Eusebio, Portugal (9 goals)",51216]
[1962,89,2.78,"Valentin Ivanov, Soviet Union\nDrazen Jerkovic, Yugoslavia\nLeonel Sanchez, Chile\nGarrincha, Brazil\nFlorian Albert, Hungary\nVava, Brazil (4 goals)",28086]
[1958,126,3.6,"Just Fontaine, France (13 goals)",23773]
[1954,140,5.38,"Sandor Kocsis, Hungary (11 goals)",34211]
[1950,88,4,"Ademir, Brazil (9 goals)",48607]
[1938,84,4.67,"Leonidas, Brazil (8 goals)",20888]
[1934,70,4.12,"Oldrich Nejedly, Czechoslovakia (5 goals)",21352]
[1930,70,3.89,"Guillermo Stabile, Argentina (8 goals)",24861]